bitfinex-derivatives/quotes_BNBF0:USTF0_20250302
["timestamp","ask_amount","ask_price","bid_price","bid_amount"]
[1740909810258,2.50573427,608.24,607.54,0.32919643]
[1740909810459,0.89770272,608.23,607.54,0.32919643]
[1740909810660,0.89770272,608.22,607.54,0.32919643]
[1740909810862,0.89770272,608.21,607.54,0.32919643]
[1740909811157,0.89770272,608.2,607.54,0.32919643]
[1740909811460,1.13654579,608.2,607.54,0.32919643]
[1740909812061,1.13654579,608.19,607.54,0.32919643]
[1740909812860,1.13654579,608.18,607.54,0.32919643]
[1740909813160,1.71743011,608.51,607.54,0.32919643]
[1740909813161,3.04454664,608.36,607.54,0.32919643]
[1740909813563,2.50589498,608.35,607.54,0.32919643]
[1740909813863,1.71743011,608.51,607.54,0.32919643]
[1740909814258,1.43639434,608.5,607.54,0.32919643]
[1740909814459,2.3341408,608.5,607.54,0.32919643]
[1740909814656,3.04457432,608.49,607.54,0.32919643]
[1740909814856,1.71743011,608.51,607.54,0.32919643]
[1740909814857,1.1366083,608.17,607.54,0.32919643]
[1740909815461,3.94232078,608.45,607.54,0.32919643]
[1740909815661,2.33432757,608.44,607.54,0.32919643]
[1740909815858,2.03435476,608.43,607.54,0.32919643]
[1740909816059,0.89774646,608.42,607.54,0.32919643]
[1740909816260,0.89774646,608.41,607.54,0.32919643]
[1740909816463,2.03435476,608.4,607.54,0.32919643]
[1740909816664,0.89774646,608.39,607.54,0.32919643]
[1740909816857,1.1366083,608.39,607.54,0.32919643]
[1740909817363,3.94283363,608.54,607.57,1.23095386]
[1740909817559,0.89787065,608.53,607.57,1.23095386]
[1740909817762,0.89787065,608.52,607.59,0.32916934]
[1740909818063,0.89787065,608.51,607.59,0.32916934]
[1740909818258,0.89787065,608.5,607.59,0.32916934]
[1740909818464,1.13657038,608.52,607.59,0.32916934]
[1740909818765,1.13657038,608.51,607.59,0.32916934]
[1740909819064,1.13657038,608.51,607.66,1.23095386]
[1740909819256,1.13657038,608.5,607.66,1.23095386]
[1740909819458,1.13657038,608.5,607.68,0.32912058]
[1740909819862,1.13657038,608.49,607.68,0.32912058]
[1740909820462,1.13657038,608.48,607.68,0.32912058]
[1740909820859,2.03408942,608.47,607.68,0.32912058]
[1740909821058,0.89751904,608.46,607.68,0.32912058]
[1740909821259,0.89751904,608.45,607.68,0.32912058]
[1740909821462,1.13657038,608.47,607.68,0.32912058]
[1740909821463,0.89751904,608.44,607.68,0.32912058]
[1740909821767,1.13657038,608.43,607.68,0.32912058]
[1740909822565,1.13657038,608.42,607.68,0.32912058]
[1740909823367,3.93908046,608.68,607.68,0.32912058]
[1740909823561,3.93908046,608.67,607.68,0.32912058]
[1740909823764,3.93908046,608.66,607.68,0.32912058]
[1740909823960,3.93908046,608.65,607.68,0.32912058]
[1740909824160,3.93908046,608.64,607.68,0.32912058]
[1740909824365,3.93908046,608.63,607.68,0.32912058]
[1740909824566,3.93908046,608.62,607.68,0.32912058]
[1740909824861,3.93908046,608.61,607.68,0.32912058]
[1740909825060,1.13521058,608.63,607.68,0.32912058]
[1740909825061,3.93908046,608.6,607.68,0.32912058]
[1740909825259,3.93908046,608.59,607.68,0.32912058]
[1740909825462,2.3321311,608.58,607.68,0.32912058]
[1740909825664,2.3321311,608.57,607.68,0.32912058]
[1740909825860,1.60694936,608.59,607.68,0.32912058]
[1740909825861,3.46734168,608.56,607.68,0.32912058]
[1740909826060,2.3321311,608.55,607.68,0.32912058]
[1740909826266,1.13521058,608.56,607.68,0.32912058]
[1740909826467,2.03172705,608.55,607.68,0.32912058]
[1740909826769,0.89651647,608.54,607.68,0.32912058]
[1740909826966,0.89651647,608.53,607.68,0.32912058]
[1740909827162,0.89651647,608.52,607.68,0.32912058]
[1740909827467,0.89651647,608.51,607.68,0.32912058]
[1740909827667,0.89651647,608.5,607.68,0.32912058]
[1740909827868,1.13521058,608.49,607.68,0.32912058]
[1740909828867,3.93587354,608.62,607.68,0.32912058]
[1740909829068,3.93587354,608.61,607.68,0.32912058]
[1740909829262,0.89626109,608.6,607.68,0.32912058]
[1740909829463,1.13468519,608.6,607.68,0.32912058]
[1740909829967,1.71640656,608.79,607.68,0.32912058]
[1740909829968,1.13468519,608.59,607.68,0.32912058]
[1740909830670,1.13468519,608.58,607.68,0.32912058]
[1740909831072,3.93477,608.72,607.68,0.32912058]
[1740909831271,3.93477,608.71,607.68,0.32912058]
[1740909831473,3.93477,608.7,607.68,0.32912058]
[1740909831673,3.93406083,608.69,607.68,0.32912058]
[1740909831873,2.32952901,608.68,607.68,0.32912058]
[1740909832072,0.89585275,608.67,607.68,0.32912058]
[1740909832273,0.89585275,608.66,607.68,0.32912058]
[1740909832575,1.13390307,608.67,607.68,0.32912058]
[1740909832576,0.89585275,608.65,607.68,0.32912058]
[1740909832775,0.89585275,608.64,607.68,0.32912058]
[1740909832974,1.71642067,608.79,607.68,0.32912058]
[1740909832975,2.02975582,608.63,607.68,0.32912058]
[1740909833276,0.89585275,608.62,607.68,0.32912058]
[1740909833468,1.13390307,608.61,607.68,0.32912058]
[1740909833873,1.13390307,608.6,607.68,0.32912058]
[1740909834375,1.13390307,608.59,607.68,0.32912058]
[1740909835174,0.89585275,608.71,607.68,0.32912058]
[1740909835175,0.89585275,608.7,607.68,0.32912058]
[1740909835370,0.89585275,608.69,607.68,0.32912058]
[1740909835568,1.13390307,608.69,607.68,0.32912058]
[1740909835975,0.89585275,608.68,607.68,0.32912058]
[1740909836174,1.13390307,608.69,607.68,0.32912058]
[1740909836468,1.13390307,608.68,607.68,0.32912058]
[1740909836876,1.13390307,608.67,607.68,0.32912058]
[1740909837771,0.89426288,608.81,607.68,0.32912058]
[1740909837970,0.89426288,608.8,607.68,0.32912058]
[1740909838175,0.89426288,608.79,607.68,0.32912058]
[1740909838376,1.13390307,608.8,607.68,0.32912058]
[1740909838872,2.02816595,608.8,607.68,0.32912058]
[1740909839071,1.13390307,608.8,607.68,0.32912058]
[1740909839572,1.13390307,608.79,607.68,0.32912058]
[1740909840275,1.13390307,608.78,607.68,0.32912058]
[1740909840877,1.13390307,608.77,607.68,0.32912058]
[1740909841473,1.13390307,608.76,607.68,0.32912058]
[1740909841978,1.13390307,608.75,607.68,0.32912058]
[1740909842578,0.97987711,609.1,607.68,0.32912058]
[1740909842579,2.02816595,608.86,607.68,0.32912058]
[1740909842779,1.13390307,608.86,607.68,0.32912058]
[1740909843275,1.13390307,608.85,607.68,0.32912058]
[1740909843875,2.02687941,608.88,607.68,0.32912058]
[1740909844080,1.13390307,608.88,607.68,0.32912058]
[1740909844681,0.89284495,608.99,607.68,0.32912058]
[1740909844873,1.13390307,608.99,607.68,0.32912058]
[1740909845480,5.05394728,609.14,607.68,0.32912058]
[1740909845783,3.92004421,609.13,607.68,0.32912058]
[1740909845981,3.4554963,609.12,607.68,0.32912058]
[1740909846180,3.92004421,609.11,607.68,0.32912058]
[1740909846383,2.32159323,609.1,607.68,0.32912058]
[1740909846779,2.02674802,609.09,607.68,0.32912058]
[1740909847183,3.74230843,609.09,607.69,1.23095386]
[1740909847378,5.05394728,609.08,607.71,0.32910434]
[1740909847578,3.92004421,609.07,607.71,0.32910434]
[1740909847780,3.4554963,609.06,607.71,0.32910434]
[1740909847983,2.02674802,609.06,607.71,0.32910434]
[1740909848180,1.13390307,609.06,607.71,0.32910434]
[1740909848580,1.13390307,609.05,607.71,0.32910434]
[1740909849186,1.13390307,609.04,607.71,0.32910434]
[1740909850078,2.02674802,609.04,607.71,0.32910434]
[1740909850280,1.13390307,609.03,607.71,0.32910434]
[1740909850683,1.13390307,609.02,607.71,0.32910434]
[1740909850884,3.4554963,609.02,607.71,0.32910434]
[1740909851085,0.89284495,609.01,607.71,0.32910434]
[1740909851282,1.13390307,609.0,607.71,0.32910434]
[1740909851685,1.13390307,608.99,607.71,0.32910434]
[1740909851987,1.13390307,608.98,607.71,0.32910434]
[1740909852383,1.13390307,608.97,607.71,0.32910434]
[1740909852785,1.13390307,608.96,607.71,0.32910434]
[1740909853389,1.13390307,608.95,607.71,0.32910434]
[1740909853785,3.91375234,609.03,607.71,0.32910434]
[1740909853987,0.89284495,609.02,607.71,0.32910434]
[1740909854488,3.91339028,609.03,607.71,0.32910434]
[1740909854687,1.13390307,609.01,607.71,0.32910434]
[1740909854883,2.02674802,609.01,607.71,0.32910434]
[1740909855090,1.13390307,609.01,607.71,0.32910434]
[1740909855390,1.13390307,609.0,607.71,0.32910434]
[1740909855785,1.13390307,608.99,607.71,0.32910434]
[1740909856290,1.13390307,608.98,607.71,0.32910434]
[1740909856689,1.13390307,608.97,607.71,0.32910434]
[1740909857189,1.13390307,608.96,607.71,0.32910434]
[1740909857988,0.89284495,609.02,607.71,0.32910434]
[1740909858187,1.13390307,609.03,607.71,0.32910434]
[1740909858385,1.13390307,609.01,607.71,0.32910434]
[1740909859588,1.13390307,609.0,607.71,0.32910434]
[1740909859789,1.13390307,608.99,607.71,0.32910434]
[1740909860486,1.13390307,608.98,607.71,0.32910434]
[1740909860887,2.31712847,609.03,607.71,0.32910434]
[1740909861286,1.42428352,609.03,607.71,0.32910434]
[1740909861496,1.13390307,609.04,607.71,0.32910434]
[1740909861793,1.13390307,609.03,607.71,0.32910434]
[1740909862187,1.13390307,609.02,607.71,0.32910434]
[1740909862386,2.48762178,609.05,607.74,1.23095386]
[1740909862387,1.13390307,609.01,607.74,1.23095386]
[1740909862592,1.13390307,609.01,607.76,0.32907726]
[1740909863191,1.13390307,609.0,607.76,0.32907726]
[1740909863792,1.13390307,608.99,607.76,0.32907726]
[1740909864492,1.13390307,608.98,607.76,0.32907726]
[1740909865294,0.89284495,609.05,607.76,0.32907726]
[1740909865295,1.13390307,608.97,607.77,1.23095386]
[1740909865497,1.13390307,608.97,607.79,0.32906102]
[1740909865696,1.13390307,609.04,607.79,0.32906102]
[1740909866196,1.13390307,609.03,607.79,0.32906102]
[1740909866595,1.13390307,609.04,607.79,0.32906102]
[1740909867298,2.02674802,609.05,607.79,0.32906102]
[1740909867597,2.02674802,609.05,607.79,1.56001488]
[1740909869191,1.13390307,609.05,607.79,1.56001488]
[1740909869496,1.13390307,609.05,607.79,0.32906102]
[1740909869899,1.71541947,609.12,607.79,0.32906102]
[1740909870100,3.91382006,609.3,607.79,0.32906102]
[1740909870401,3.91382006,609.29,607.79,0.32906102]
[1740909870700,0.97987711,609.43,607.79,0.32906102]
[1740909870701,3.45103111,609.28,607.79,0.32906102]
[1740909870894,2.31699568,609.27,607.79,0.32906102]
[1740909871095,1.13390307,609.28,607.79,0.32906102]
[1740909871292,1.13390307,609.26,607.79,0.32906102]
[1740909871699,1.13390307,609.25,607.79,0.32906102]
[1740909871899,1.13390307,609.25,607.87,1.23095386]
[1740909872097,1.13390307,609.25,607.89,0.32900689]
[1740909872603,1.13390307,609.31,607.89,0.32900689]
[1740909872900,2.0253234,609.39,607.89,0.32900689]
[1740909873104,0.89142033,609.38,607.89,0.32900689]
[1740909873300,3.91386142,609.38,607.89,0.32900689]
[1740909873597,2.31717706,609.37,607.89,0.32900689]
[1740909873801,0.89142033,609.36,608.1,1.23095386]
[1740909873996,0.89142033,609.35,608.12,0.32888245]
[1740909874197,0.89142033,609.34,608.12,0.32888245]
[1740909874502,0.89142033,609.33,608.12,0.32888245]
[1740909874701,0.89142033,609.32,608.12,0.32888245]
[1740909874895,0.89142033,609.31,608.12,0.32888245]
[1740909875096,0.89142033,609.3,608.12,0.32888245]
[1740909875298,2.48723274,609.33,608.12,0.32888245]
[1740909875500,0.89142033,609.33,608.12,0.32888245]
[1740909875701,0.89142033,609.32,608.12,0.32888245]
[1740909876003,1.13390307,609.34,608.12,0.32888245]
[1740909876497,0.89129172,609.33,608.12,0.32888245]
[1740909876700,0.89129172,609.32,608.12,0.32888245]
[1740909876899,0.89129172,609.31,608.12,0.32888245]
[1740909877204,0.8910624,609.31,608.12,0.32888245]
[1740909877605,1.13390307,609.3,608.12,0.32888245]
[1740909878201,1.13390307,609.29,608.12,0.32888245]
[1740909878803,1.13390307,609.28,608.12,0.32888245]
[1740909879405,1.13390307,609.27,608.12,0.32888245]
[1740909880009,1.13390307,609.26,608.12,0.32888245]
[1740909880618,1.13390307,609.25,608.12,0.32888245]
[1740909881018,1.13390307,609.24,608.12,0.32888245]
[1740909881418,1.13390307,609.23,608.12,0.32888245]
[1740909881918,3.91245896,609.55,608.12,0.32888245]
[1740909881919,1.13390307,609.31,608.12,0.32888245]
[1740909882520,1.13390307,609.3,608.12,0.32888245]
[1740909883020,1.13390307,609.29,608.12,0.32888245]
[1740909884022,1.13390307,609.28,608.12,0.32888245]
[1740909884521,1.13390307,609.27,608.12,0.32888245]
[1740909885117,1.13390307,609.26,608.12,0.32888245]
[1740909885822,1.13390307,609.25,608.12,0.32888245]
[1740909886318,1.13390307,609.24,608.12,0.32888245]
[1740909886925,1.13390307,609.23,608.12,0.32888245]
[1740909887425,1.13390307,609.22,608.12,0.32888245]
[1740909888120,1.13390307,609.27,608.12,0.32888245]
[1740909888820,1.13390307,609.26,608.12,0.32888245]
[1740909889218,0.89139992,609.32,608.12,0.32888245]
[1740909889219,1.13390307,609.31,608.12,0.32888245]
[1740909893526,1.13390307,609.3,608.12,0.32888245]
[1740909894228,1.13390307,609.29,608.12,0.32888245]
[1740909895024,1.13390307,609.38,608.12,0.32888245]
[1740909895330,2.02586005,609.48,608.12,0.32888245]
[1740909895830,1.13390307,609.47,608.12,0.32888245]
[1740909896329,0.89194997,609.48,608.12,0.32888245]
[1740909896330,1.13390307,609.46,608.12,0.32888245]
[1740909896823,1.13390307,609.46,608.24,1.23095386]
[1740909897324,1.13390307,609.45,608.24,1.23095386]
[1740909897529,1.13390307,609.45,608.26,0.32880676]
[1740909898223,1.13390307,609.44,608.26,0.32880676]
[1740909898727,1.13390307,609.43,608.26,0.32880676]
[1740909899530,1.13390307,609.47,608.26,0.32880676]
[1740909900231,1.13390307,609.46,608.26,0.32880676]
[1740909901036,1.13390307,609.45,608.26,0.32880676]
[1740909901836,1.13390307,609.44,608.26,0.32880676]
[1740909902238,1.13390307,609.47,608.26,0.32880676]
[1740909902740,1.13390307,609.46,608.26,0.32880676]
[1740909903440,0.89169617,609.48,608.26,0.32880676]
[1740909903441,2.02559924,609.48,608.26,0.32880676]
[1740909904637,2.02559924,609.48,608.39,1.23095386]
[1740909904834,2.02559924,609.48,608.41,0.32872569]
[1740909908744,1.13390307,609.48,608.41,0.32872569]
[1740909908944,1.71416609,609.49,608.41,0.32872569]
[1740909910143,5.04913586,609.61,608.41,0.32872569]
[1740909910346,3.91523279,609.6,608.41,0.32872569]
[1740909910541,1.71405351,609.58,608.41,0.32872569]
[1740909910744,2.60574968,609.58,608.41,0.32872569]
[1740909910944,4.03202924,609.58,608.41,0.32872569]
[1740909911146,3.4518788,609.57,608.41,0.32872569]
[1740909911345,2.02559924,609.57,608.41,0.32872569]
[1740909911546,3.4518788,609.57,608.41,0.32872569]
[1740909911747,2.31797573,609.56,608.41,0.32872569]
[1740909911942,1.13390307,609.57,608.41,0.32872569]
[1740909912146,1.13390307,609.56,608.41,0.32872569]
[1740909912548,0.89169617,609.57,608.41,0.32872569]
[1740909912549,1.13390307,609.55,608.41,0.32872569]
[1740909912848,1.13390307,609.54,608.41,0.32872569]
[1740909913245,1.13390307,609.54,608.41,1.55967955]
[1740909913448,1.13390307,609.53,608.41,1.55967955]
[1740909914248,1.13390307,609.56,608.41,1.55967955]
[1740909914949,0.89095381,609.68,608.41,1.55967955]
[1740909915149,0.89095381,609.67,608.41,1.55967955]
[1740909915350,0.89095381,609.68,608.41,1.55967955]
[1740909915546,1.13390307,609.66,608.41,1.55967955]
[1740909915752,0.89095381,609.65,608.41,1.55967955]
[1740909915947,2.02485688,609.65,608.41,1.55967955]
[1740909916152,1.13390307,609.65,608.41,1.55967955]
[1740909916652,1.13390307,609.69,608.41,1.55967955]
[1740909917048,1.13390307,609.68,608.41,1.55967955]
[1740909917755,1.13390307,609.74,608.41,1.55967955]
[1740909917951,1.13390307,609.74,608.41,0.32872569]
[1740909918551,1.13390307,609.73,608.41,0.32872569]
[1740909919155,1.13390307,609.72,608.41,0.32872569]
[1740909919850,1.13390307,609.71,608.41,0.32872569]
[1740909920452,1.13390307,609.7,608.41,0.32872569]
[1740909920651,2.84768928,609.7,608.41,0.32872569]
[1740909920954,2.48580785,609.69,608.41,0.32872569]
[1740909921155,3.4486463,609.69,608.41,0.32872569]
[1740909921355,0.89020451,609.68,608.41,0.32872569]
[1740909921850,1.13390307,609.67,608.41,0.32872569]
[1740909922357,1.13390307,609.66,608.41,0.32872569]
[1740909923160,1.13390307,609.65,608.41,0.32872569]
[1740909923755,1.13390307,609.64,608.41,0.32872569]
[1740909923954,2.8479003,609.64,608.41,0.32872569]
[1740909924153,2.48719962,609.63,608.41,0.32872569]
[1740909924352,5.04617325,609.63,608.41,0.32872569]
[1740909924559,3.91227018,609.62,608.41,0.32872569]
[1740909924753,2.31573966,609.61,608.41,0.32872569]
[1740909924953,2.02457217,609.61,608.41,0.32872569]
[1740909925252,2.02457217,609.6,608.41,0.32872569]
[1740909925458,2.31573966,609.59,608.41,0.32872569]
[1740909925661,2.31573966,609.58,608.41,0.32872569]
[1740909925860,0.8906691,609.57,608.41,0.32872569]
[1740909926054,0.8906691,609.56,608.41,0.32872569]
[1740909926254,0.8906691,609.55,608.41,0.32872569]
[1740909926454,0.8906691,609.54,608.41,0.32872569]
[1740909926660,0.8906691,609.53,608.41,0.32872569]
[1740909926854,0.8906691,609.52,608.41,0.32872569]
[1740909927059,0.8906691,609.51,608.41,0.32872569]
[1740909927261,0.8906691,609.5,608.41,0.32872569]
[1740909927560,0.8906691,609.49,608.41,0.32872569]
[1740909927753,0.8906691,609.48,608.41,0.32872569]
[1740909927953,0.8906691,609.47,608.41,0.32872569]
[1740909928157,1.13390307,609.49,608.41,0.32872569]
[1740909928158,0.8906691,609.46,608.41,0.32872569]
[1740909928356,0.8906691,609.45,608.41,0.32872569]
[1740909928556,0.8906691,609.44,608.41,0.32872569]
[1740909928757,0.8906691,609.43,608.41,0.32872569]
[1740909928957,0.8906691,609.42,608.41,0.32872569]
[1740909929155,0.8906691,609.41,608.41,0.32872569]
[1740909929357,0.8906691,609.4,608.41,0.32872569]
[1740909929562,0.8906691,609.39,608.41,0.32872569]
[1740909929957,1.13390307,609.4,608.41,0.32872569]
[1740909930159,1.71444055,609.46,608.41,0.32872569]
[1740909930160,1.13390307,609.38,608.41,0.32872569]
[1740909930963,1.13390307,609.37,608.41,0.32872569]
[1740909931458,1.13390307,609.36,608.41,0.32872569]
[1740909932463,1.13390307,609.35,608.41,0.32872569]
[1740909932764,1.13390307,609.34,608.41,0.32872569]
[1740909933359,0.8930589,609.39,608.41,0.32872569]
[1740909933764,2.02696197,609.4,608.41,0.32872569]
[1740909935167,1.13390307,609.39,608.41,0.32872569]
[1740909936066,0.8930589,609.4,608.41,0.32872569]
[1740909936268,2.02696197,609.4,608.41,0.32872569]
[1740909936663,1.13390307,609.4,608.41,0.32872569]
[1740909938766,1.71456021,609.39,608.41,0.32872569]
[1740909939071,2.60811377,609.39,608.41,0.32872569]
[1740909939864,1.13390307,609.38,608.41,0.32872569]
[1740909940072,2.02751801,609.38,608.41,0.32872569]
[1740909940765,2.02751801,609.37,608.41,0.32872569]
[1740909940964,0.89361494,609.36,608.41,0.32872569]
[1740909941170,0.89361494,609.35,608.41,0.32872569]
[1740909941469,0.89361494,609.34,608.41,0.32872569]
[1740909941670,0.89361494,609.33,608.41,0.32872569]
[1740909941868,2.02751801,609.32,608.41,0.32872569]
[1740909942073,0.89361494,609.31,608.41,0.32872569]
[1740909942474,0.89361494,609.3,608.41,0.32872569]
[1740909942773,0.89361494,609.29,608.41,0.32872569]
[1740909942973,0.89361494,609.28,608.41,0.32872569]
[1740909943169,1.13390307,609.28,608.41,0.32872569]
[1740909943372,0.89361494,609.27,608.41,0.32872569]
[1740909943775,0.89406146,609.26,608.41,0.32872569]
[1740909943969,0.89406146,609.25,608.41,0.32872569]
[1740909944174,0.89406146,609.24,608.41,0.32872569]
[1740909944374,0.89406146,609.23,608.41,0.32872569]
[1740909944575,0.89406146,609.22,608.41,0.32872569]
[1740909944870,2.02796453,609.21,608.41,0.32872569]
[1740909945076,0.89406146,609.2,608.41,0.32872569]
[1740909945269,1.13390307,609.21,608.41,0.32872569]
[1740909945270,0.89406146,609.19,608.41,0.32872569]
[1740909945474,2.02796453,609.18,608.41,0.32872569]
[1740909945675,0.89406146,609.17,608.41,0.32872569]
[1740909945878,0.89391011,609.16,608.41,0.32872569]
[1740909946071,0.89391011,609.15,608.41,0.32872569]
[1740909946378,0.89391011,609.14,608.41,0.32872569]
[1740909946578,0.89391011,609.13,608.41,0.32872569]
[1740909946777,0.89391011,609.12,608.41,0.32872569]
[1740909946971,0.89391011,609.11,608.41,0.32872569]
[1740909947172,0.89391011,609.1,608.41,0.32872569]
[1740909947378,0.89344347,609.09,608.41,0.32872569]
[1740909947573,0.89344347,609.08,608.41,0.32872569]
[1740909947974,1.13390307,609.09,608.41,0.32872569]
[1740909948371,1.13390307,609.08,608.41,0.32872569]
[1740909948772,1.13390307,609.07,608.41,0.32872569]
[1740909949378,1.13390307,609.06,608.41,0.32872569]
[1740909949580,1.13390307,609.05,608.41,0.32872569]
[1740909950175,2.02734654,609.09,608.41,0.32872569]
[1740909950381,1.13390307,609.09,608.41,0.32872569]
[1740909950781,1.13390307,609.08,608.41,0.32872569]
[1740909951182,1.13390307,609.07,608.41,0.32872569]
[1740909951576,2.02734654,609.12,608.41,0.32872569]
[1740909951977,1.13390307,609.12,608.41,0.32872569]
[1740909952484,1.13390307,609.11,608.41,0.32872569]
[1740909952878,1.13390307,609.1,608.41,0.32872569]
[1740909953481,1.13390307,609.09,608.41,0.32872569]
[1740909953880,2.84932254,609.09,608.41,0.32872569]
[1740909954080,2.02630283,609.08,608.41,0.32872569]
[1740909955289,1.13390307,609.07,608.41,0.32872569]
[1740909955887,1.13390307,609.06,608.41,0.32872569]
[1740909956588,1.13390307,609.05,608.41,0.32872569]
[1740909957186,1.13390307,609.04,608.41,0.32872569]
[1740909957783,1.13390307,609.03,608.41,0.32872569]
[1740909958182,0.8909616,609.08,608.41,0.32872569]
[1740909958183,1.13390307,609.02,608.41,0.32872569]
[1740909958785,1.13390307,609.01,608.41,0.32872569]
[1740909959383,1.13390307,609.0,608.41,0.32872569]
[1740909959990,1.13390307,608.99,608.41,0.32872569]
[1740909960186,1.13390307,609.04,608.41,0.32872569]
[1740909960783,0.89079343,609.05,608.41,0.32872569]
[1740909960784,1.13390307,609.03,608.41,0.32872569]
[1740909961183,1.13390307,609.02,608.41,0.32872569]
[1740909961990,1.13390307,609.01,608.41,0.32872569]
[1740909962291,1.13390307,609.0,608.41,0.32872569]
[1740909963086,0.89079343,609.05,608.41,0.32872569]
[1740909963087,2.0246965,609.05,608.41,0.32872569]
[1740909963491,1.13390307,609.04,608.41,0.32872569]
[1740909964293,1.13390307,609.03,608.41,0.32872569]
[1740909964790,1.13390307,609.02,608.41,0.32872569]
[1740909965990,1.13390307,609.01,608.41,0.32872569]
[1740909966493,1.13390307,609.04,608.41,0.32872569]
[1740909966893,0.89079343,609.05,608.41,0.32872569]
[1740909966894,1.13390307,609.03,608.41,0.32872569]
[1740909967589,5.04013015,609.21,608.41,0.32872569]
[1740909967788,3.90622708,609.2,608.41,0.32872569]
[1740909967991,2.31257074,609.19,608.41,0.32872569]
[1740909968193,2.02339568,609.19,608.41,0.32872569]
[1740909968391,1.13390307,609.19,608.41,0.32872569]
[1740909968794,1.13390307,609.18,608.41,0.32872569]
[1740909969194,1.13390307,609.17,608.41,0.32872569]
[1740909970390,1.13390307,609.16,608.41,0.32872569]
[1740909970592,1.13390307,609.15,608.41,0.32872569]
[1740909971096,1.13390307,609.14,608.41,0.32872569]
[1740909971497,1.13390307,609.13,608.41,0.32872569]
[1740909971796,1.13390307,609.2,608.41,0.32872569]
[1740909971996,1.13390307,609.19,608.41,0.32872569]
[1740909973193,1.13390307,609.18,608.41,0.32872569]
[1740909974097,1.13390307,609.17,608.41,0.32872569]
[1740909974699,1.13390307,609.16,608.41,0.32872569]
[1740909975496,1.13390307,609.15,608.41,0.32872569]
[1740909976196,1.13390307,609.14,608.41,0.32872569]
[1740909976598,1.13390307,609.13,608.41,0.32872569]
[1740909976998,1.13390307,609.2,608.41,0.32872569]
[1740909977504,1.13390307,609.19,608.41,0.32872569]
[1740909978099,1.13390307,609.18,608.41,0.32872569]
[1740909978599,1.13390307,609.17,608.41,0.32872569]
[1740909979196,1.13390307,609.16,608.41,0.32872569]
[1740909979501,1.13390307,609.15,608.41,0.32872569]
[1740909979903,1.13390307,609.14,608.41,0.32872569]
[1740909980902,1.13390307,609.13,608.41,0.32872569]
[1740909981296,2.02585517,609.13,608.41,0.32872569]
[1740909981498,0.8919521,609.12,608.41,0.32872569]
[1740909981700,0.8919521,609.11,608.41,0.32872569]
[1740909981900,0.8919521,609.1,608.41,0.32872569]
[1740909982104,0.8919521,609.09,608.41,0.32872569]
[1740909982402,0.8919521,609.08,608.41,0.32872569]
[1740909982597,0.8919521,609.07,608.41,0.32872569]
[1740909982803,2.02585517,609.06,608.41,0.32872569]
[1740909983002,0.8919521,609.05,608.41,0.32872569]
[1740909983198,0.8919521,609.04,608.41,0.32872569]
[1740909983401,0.8919521,609.03,608.41,0.32872569]
[1740909983602,2.02585517,609.02,608.41,0.32872569]
[1740909983901,5.35803056,613.8,608.41,0.32872569]
[1740909983902,2.02585517,609.01,608.41,0.32872569]
[1740909984104,0.8919521,609.0,608.41,0.32872569]
[1740909984305,0.8919521,608.99,608.41,0.32872569]
[1740909984505,0.8919521,608.98,608.41,0.32872569]
[1740909984904,1.13390307,608.97,608.41,0.32872569]
[1740909985108,0.8919521,608.96,608.41,0.32872569]
[1740909985304,0.8919521,608.95,608.41,0.32872569]
[1740909985510,0.8919521,608.94,608.41,0.32872569]
[1740909985709,0.8919521,608.93,608.41,0.32872569]
[1740909985912,0.8919521,608.92,608.41,0.32872569]
[1740909986209,0.8919521,608.94,608.41,0.32872569]
[1740909986411,2.02585517,608.93,608.41,0.32872569]
[1740909986612,1.13390307,608.93,608.41,0.32872569]
[1740909987208,0.8919521,608.92,608.41,0.32872569]
[1740909987403,0.8919521,608.91,608.41,0.32872569]
[1740909987605,1.13390307,608.92,608.41,0.32872569]
[1740909988110,2.02585517,608.91,608.41,0.32872569]
[1740909988313,1.13390307,608.91,608.41,0.32872569]
[1740909988911,1.13390307,608.9,608.41,0.32872569]
[1740909989509,1.13390307,608.89,608.41,0.32872569]
[1740909990006,2.02585517,608.88,608.41,0.32872569]
[1740909990209,0.8919521,608.87,608.41,0.32872569]
[1740909990406,0.8919521,608.86,608.41,0.32872569]
[1740909990612,2.02585517,608.85,608.41,0.32872569]
[1740909990811,0.8919521,608.84,608.41,0.32872569]
[1740909991013,0.89387776,608.84,608.41,0.32872569]
[1740909991311,2.02778083,608.83,608.41,0.32872569]
[1740909991509,1.13390307,608.83,608.41,0.32872569]
[1740909991924,0.89387776,608.82,608.41,0.32872569]
[1740909992216,0.89387776,608.81,608.41,0.32872569]
[1740909992409,1.13390307,608.82,608.41,0.32872569]
[1740909992814,2.02778083,608.81,608.41,0.32872569]
[1740909993014,1.13390307,608.81,608.41,0.32872569]
[1740909993214,0.89387776,608.8,608.41,0.32872569]
[1740909993416,0.89387776,608.79,608.41,0.32872569]
[1740909993710,0.89387776,608.78,608.41,0.32872569]
[1740909993916,0.89387776,608.77,608.41,0.32872569]
[1740909994109,0.89387776,608.76,608.41,0.32872569]
[1740909994310,0.89387776,608.75,608.41,0.32872569]
[1740909994616,0.89387776,608.74,608.41,0.32872569]
[1740909994814,1.13390307,608.73,608.41,0.32872569]
[1740909995616,1.13390307,608.72,608.41,0.32872569]